bitfinex/quotes_BTCUSD_20251215
["timestamp","ask_amount","ask_price","bid_price","bid_amount"]
[1765768623246,0.01764,89485.0,89484.0,0.22350364]
[1765768623481,0.23804967,89485.0,89482.0,0.01117543]
[1765768623675,0.23804967,89485.0,89479.0,0.23469193]
[1765768623676,0.11128967,89480.0,89479.0,0.23469193]
[1765768624104,0.16070967,89480.0,89479.0,0.23469193]
[1765768624306,1.22017967,89480.0,89479.0,0.23469193]
[1765768624753,1.16070967,89480.0,89479.0,0.23469193]
[1765768626618,1.16270967,89480.0,89479.0,0.23469193]
[1765768626813,0.47350967,89480.0,89479.0,0.23469193]
[1765768627025,0.11328967,89480.0,89479.0,0.23469193]
[1765768627567,0.11328967,89480.0,89479.0,0.38035991]
[1765768628316,0.11328903,89480.0,89479.0,0.38035991]
[1765768628517,0.11328903,89480.0,89479.0,0.45493991]
[1765768629459,0.11328903,89480.0,89479.0,0.38035991]
[1765768631123,0.11328903,89480.0,89479.0,0.14566798]
[1765768631124,0.16270903,89480.0,89479.0,0.14566798]
[1765768631326,1.22055903,89480.0,89479.0,0.14566798]
[1765768633112,0.84838903,89480.0,89479.0,0.14566798]
[1765768633314,0.11128903,89479.0,89478.0,0.22351857]
[1765768633715,0.002,89480.0,89478.0,0.22351857]
[1765768633949,0.11128903,89479.0,89478.0,0.22351857]
[1765768634158,0.002,89480.0,89479.0,0.04605]
[1765768634331,0.11128903,89484.0,89482.0,0.01117543]
[1765768634754,0.11128903,89484.0,89483.0,0.15812]
[1765768634981,0.01764,89485.0,89483.0,0.38286417]
[1765768635184,0.0004,89487.0,89486.0,0.22349864]
[1765768635392,0.00051512,89487.0,89486.0,0.27078667]
[1765768635543,0.00051512,89487.0,89486.0,0.34536667]
[1765768636724,0.00051512,89487.0,89486.0,0.36300667]
[1765768636953,0.00051512,89487.0,89486.0,0.50107296]
[1765768637159,0.00051512,89487.0,89486.0,0.40519736]
[1765768637344,0.00051512,89487.0,89486.0,0.45133926]
[1765768637478,0.00051512,89487.0,89486.0,0.45833926]
[1765768637827,0.00051512,89487.0,89486.0,0.40519736]
[1765768638041,0.00051512,89487.0,89486.0,0.51649736]
[1765768638174,0.00051512,89487.0,89486.0,0.53449736]
[1765768638594,0.00051512,89487.0,89486.0,0.82519736]
[1765768638792,0.00051512,89487.0,89486.0,0.88537097]
[1765768639062,0.00051512,89487.0,89486.0,0.82519736]
[1765768639619,0.00051512,89487.0,89486.0,0.88533564]
[1765768640019,0.00051512,89487.0,89486.0,0.82519736]
[1765768640237,0.00051512,89487.0,89486.0,0.88530277]
[1765768640504,0.00024191,89491.0,89486.0,0.88530277]
[1765768640505,0.00024191,89491.0,89490.0,0.62548865]
[1765768640705,0.00024191,89491.0,89490.0,0.67277668]
[1765768640822,0.00024191,89491.0,89490.0,0.67824737]
[1765768641023,0.00024191,89491.0,89490.0,0.71379976]
[1765768641337,0.00024191,89491.0,89490.0,0.65369668]
[1765768641741,0.00024191,89491.0,89490.0,0.66969668]
[1765768643642,0.00024191,89491.0,89490.0,0.66169668]
[1765768643973,0.00124191,89491.0,89490.0,0.66369668]
[1765768644174,0.00124191,89491.0,89490.0,0.67269668]
[1765768644375,0.00124191,89491.0,89490.0,0.71270554]
[1765768644580,0.00124191,89491.0,89490.0,0.71717939]
[1765768644975,0.00124191,89491.0,89490.0,0.67717053]
[1765768645178,0.0004,89503.0,89500.0,0.23463686]
[1765768645390,0.0004,89503.0,89502.0,0.08354]
[1765768645592,0.0004,89503.0,89502.0,0.08477803]
[1765768645907,0.0007628,89503.0,89502.0,0.15935803]
[1765768646109,0.0007628,89503.0,89502.0,0.38281672]
[1765768648760,0.0007628,89503.0,89502.0,0.38981672]
[1765768648917,0.0007628,89503.0,89502.0,0.39781672]
[1765768651139,0.0007628,89503.0,89502.0,0.54144279]
[1765768654250,0.0007628,89503.0,89502.0,0.58363348]
[1765768654867,0.0007628,89503.0,89502.0,0.63940341]
[1765768655115,0.0007628,89503.0,89502.0,0.69493348]
[1765768656130,0.0004,89508.0,89502.0,0.69493348]
[1765768656131,0.0004,89508.0,89507.0,0.33474621]
[1765768656337,0.0004,89508.0,89507.0,0.43868493]
[1765768656538,0.0004,89508.0,89507.0,0.50615493]
[1765768656766,0.0004,89508.0,89507.0,1.04425493]
[1765768657529,0.0004,89508.0,89507.0,1.05125493]
[1765768657751,0.0004,89508.0,89507.0,1.05825493]
[1765768657947,0.0004,89508.0,89507.0,1.05125493]
[1765768658152,0.0004,89508.0,89507.0,1.04425493]
[1765768658355,0.0004,89508.0,89507.0,1.05425493]
[1765768658682,0.0004,89508.0,89507.0,1.08426394]
[1765768658891,0.0004,89508.0,89507.0,1.09526394]
[1765768659216,0.11168903,89540.0,89539.0,0.22336635]
[1765768659422,0.11168903,89540.0,89539.0,0.26623635]
[1765768659423,0.0004,89540.0,89539.0,0.26623635]
[1765768659660,0.0004,89540.0,89539.0,0.33494438]
[1765768660427,0.0014,89540.0,89539.0,0.33494438]
[1765768660731,0.0014,89540.0,89539.0,0.33694438]
[1765768660897,0.0004,89540.0,89539.0,0.33494438]
[1765768661276,0.0004,89540.0,89539.0,0.34394438]
[1765768661688,0.0004,89540.0,89539.0,0.33794438]
[1765768661864,0.0004,89540.0,89539.0,0.34594438]
[1765768662610,0.0004,89540.0,89539.0,0.34294438]
[1765768663154,0.0004,89540.0,89539.0,0.49100765]
[1765768666961,0.00151811,89540.0,89539.0,0.49100765]
[1765768667736,0.00151811,89540.0,89539.0,0.34894438]
[1765768667935,0.00151811,89540.0,89539.0,0.53319834]
[1765768668140,0.00151811,89540.0,89539.0,0.446905]
[1765768668548,0.00151811,89540.0,89539.0,0.58896827]
[1765768668873,0.0004,89564.0,89561.0,0.01116557]
[1765768669095,0.0004,89564.0,89563.0,0.30147452]
[1765768669293,0.0004,89564.0,89563.0,0.44353779]
[1765768669506,0.0004,89564.0,89563.0,0.53311862]
[1765768669901,0.0004,89564.0,89563.0,0.51547862]
[1765768670110,0.0004,89564.0,89563.0,0.53311862]
[1765768671009,0.0004,89564.0,89563.0,0.53811862]
[1765768671208,0.0004,89564.0,89563.0,0.58728672]
[1765768671530,0.0004,89564.0,89563.0,0.52747862]
[1765768672228,0.0004,89564.0,89563.0,0.52300779]
[1765768673653,0.0004,89564.0,89563.0,0.63430779]
[1765768673826,0.0004,89564.0,89563.0,0.67646459]
[1765768674406,0.0004,89564.0,89563.0,0.66946459]
[1765768674604,0.0004,89564.0,89563.0,0.66446459]
[1765768674931,0.11128903,89590.0,89589.0,0.01116208]
[1765768675240,0.11128903,89590.0,89589.0,0.15242535]
[1765768675443,0.11128903,89590.0,89589.0,0.14126327]
[1765768675611,0.15573387,89590.0,89589.0,0.14126327]
[1765768675808,1.16028056,89590.0,89589.0,0.14126327]
[1765768676063,1.20394387,89590.0,89589.0,0.14126327]
[1765768676976,1.20394387,89590.0,89570.0,0.23445154]
[1765768676977,1.20394387,89590.0,89578.0,0.14126327]
[1765768676978,0.11128903,89579.0,89578.0,0.14126327]
[1765768677354,0.16052572,89579.0,89578.0,0.14126327]
[1765768677961,0.16090056,89579.0,89578.0,0.14117047]
[1765768679697,0.16090056,89579.0,89578.0,0.14717047]
[1765768680020,0.16207834,89579.0,89578.0,0.15017047]
[1765768680879,0.16207834,89579.0,89578.0,0.009]
[1765768682754,0.15753165,89579.0,89578.0,0.009]
[1765768683506,0.11284165,89579.0,89578.0,0.009]
[1765768684456,0.15753165,89579.0,89578.0,0.009]
[1765768684659,1.20410165,89579.0,89578.0,0.009]
[1765768685657,0.52223165,89579.0,89578.0,0.009]
[1765768685973,0.41913165,89579.0,89578.0,0.009]
[1765768686365,0.11128903,89576.0,89575.0,0.14117047]
[1765768686567,0.23443255,89578.0,89576.0,0.22327409]
[1765768686568,0.2261,89578.0,89576.0,0.22327409]
[1765768686798,0.11166387,89579.0,89577.0,0.10876]
[1765768687048,0.11266387,89579.0,89577.0,0.10876]
[1765768687213,0.11266387,89579.0,89578.0,0.2232691]
[1765768687638,0.11266387,89579.0,89575.0,0.15233429]
[1765768687639,0.2232691,89578.0,89575.0,0.14117047]
[1765768687841,1.33539,89576.0,89575.0,0.14117047]
[1765768688055,1.33539,89576.0,89553.0,0.06384]
[1765768688056,0.01116694,89550.0,89545.0,0.04470294]
[1765768688275,0.11128903,89546.0,89545.0,0.01240559]
[1765768688675,0.11128903,89557.0,89556.0,0.22332395]
[1765768689243,0.11167316,89557.0,89556.0,0.22332395]
[1765768690580,0.11167316,89557.0,89556.0,0.23432395]
[1765768691798,0.11167316,89557.0,89556.0,0.34308395]
[1765768691994,0.00038413,89557.0,89556.0,0.34432198]
[1765768692354,0.11167316,89557.0,89556.0,0.34432198]
[1765768692810,0.00038413,89557.0,89556.0,0.34432198]
[1765768694286,0.00038413,89557.0,89556.0,0.45562198]
[1765768694479,0.00038413,89557.0,89556.0,0.34432198]
[1765768694822,0.00089765,89557.0,89556.0,0.34432198]
[1765768695778,0.00089765,89557.0,89556.0,0.48549245]
[1765768696777,0.00089765,89557.0,89556.0,0.52720377]
[1765768696975,0.00089765,89557.0,89556.0,0.53175046]
[1765768697927,0.00089765,89557.0,89556.0,0.63605046]
[1765768698131,0.00089765,89557.0,89556.0,0.69215354]
[1765768698340,0.40693572,89598.0,89597.0,0.22322175]
[1765768698490,0.40693572,89598.0,89595.0,0.01116133]
[1765768698491,0.40198903,89596.0,89595.0,0.01116133]
[1765768699227,0.44556903,89596.0,89595.0,0.01116133]
[1765768700503,0.40198903,89594.0,89593.0,0.01116158]
[1765768700701,0.01167616,89598.0,89595.0,0.05608133]
[1765768700702,0.0005152,89598.0,89595.0,0.05608133]
[1765768700909,0.11128903,89597.0,89595.0,0.05608133]
[1765768701788,0.11128903,89597.0,89596.0,0.25657286]
[1765768702545,0.11128903,89597.0,89596.0,0.36533286]
[1765768702797,0.0005152,89598.0,89596.0,0.36657089]
[1765768702920,0.0005152,89598.0,89597.0,0.10876]
[1765768703119,0.0005152,89598.0,89597.0,0.10999803]
[1765768703729,0.0005152,89598.0,89597.0,0.00123803]
[1765768703928,0.0005152,89598.0,89594.0,0.22322923]
[1765768703929,0.11128903,89595.0,89594.0,0.01116146]
[1765768704135,0.11128903,89595.0,89593.0,0.01116158]
[1765768704136,0.11128903,89594.0,89593.0,0.01116158]
[1765768704700,0.00037484,89595.0,89592.0,0.01116171]
[1765768704824,0.11128903,89593.0,89592.0,0.01116171]
[1765768706096,0.11428903,89594.0,89593.0,0.22323172]
[1765768706436,0.003,89594.0,89593.0,0.33322975]
[1765768706691,0.0005152,89598.0,89597.0,0.22322175]
[1765768706838,0.0005152,89598.0,89597.0,0.26739978]
[1765768707052,0.0005152,89598.0,89597.0,0.32977978]
[1765768707685,0.0005152,89598.0,89597.0,0.47095025]
[1765768708152,0.0005152,89598.0,89597.0,0.47795025]
[1765768708350,0.0005152,89598.0,89597.0,0.47095025]
[1765768708731,0.0005152,89598.0,89597.0,0.47895025]
[1765768709496,0.0005152,89598.0,89597.0,0.48195025]
[1765768709909,0.001753,89598.0,89597.0,0.47895025]
[1765768710120,0.001753,89598.0,89597.0,0.47095025]
[1765768710332,0.001753,89598.0,89597.0,0.47495025]
[1765768710543,0.001753,89598.0,89597.0,0.48295025]
[1765768712370,0.001753,89598.0,89597.0,0.15317047]
[1765768712371,0.11304203,89598.0,89597.0,0.15317047]
[1765768713393,0.11304203,89598.0,89597.0,0.37639222]
[1765768713595,0.11304203,89598.0,89597.0,0.37239222]
[1765768713797,0.11604203,89598.0,89597.0,0.36439222]
[1765768715072,0.11604203,89598.0,89597.0,0.14117047]
[1765768715565,0.15657203,89598.0,89597.0,0.14117047]
[1765768715905,1.15694687,89598.0,89597.0,0.14117047]
[1765768716311,1.19728687,89598.0,89597.0,0.14117047]
[1765768716519,1.48798687,89598.0,89597.0,0.14117047]
[1765768719234,1.42671623,89598.0,89597.0,0.14117047]
[1765768719575,1.42671623,89598.0,89571.0,0.2474]
[1765768719576,1.42671623,89598.0,89578.0,0.01116345]
[1765768719577,0.01116283,89583.0,89578.0,0.01116345]
[1765768719756,0.01116283,89583.0,89572.0,0.0111642]
[1765768719757,0.11128903,89574.0,89572.0,0.0111642]
[1765768720333,0.11128903,89574.0,89573.0,0.22328156]
[1765768720776,0.02058,89578.0,89576.0,0.22327407]
[1765768720777,0.11128903,89577.0,89576.0,0.22327407]
[1765768720928,0.11128903,89576.0,89575.0,0.01116382]
[1765768721129,0.11128903,89574.0,89573.0,0.23444563]
[1765768721723,0.11128903,89574.0,89561.0,0.22330979]
[1765768721724,0.11128903,89574.0,89566.0,0.01116495]
[1765768721725,0.11128903,89567.0,89566.0,0.01116495]
[1765768722154,0.12991903,89567.0,89566.0,0.01116495]
[1765768722811,0.05785,89567.0,89566.0,0.01116495]
[1765768723016,0.16925417,89567.0,89566.0,0.01116495]
[1765768723439,0.17225417,89567.0,89566.0,0.01116495]
[1765768725962,0.11128903,89565.0,89564.0,0.0111652]
[1765768727134,0.11128903,89565.0,89564.0,0.0131652]
[1765768727655,0.11128903,89565.0,89564.0,0.0161652]
[1765768731467,0.11153064,89565.0,89564.0,0.0161652]
[1765768735852,0.11153064,89565.0,89564.0,0.0156236]
[1765768736426,0.11153064,89565.0,89564.0,0.0786336]
[1765768736829,0.11153064,89565.0,89564.0,0.0156236]
[1765768742163,0.00024161,89565.0,89564.0,0.11558163]
[1765768743258,0.00024161,89565.0,89564.0,0.26398163]
[1765768745908,0.00024161,89565.0,89564.0,0.30569295]
[1765768746135,0.00024161,89565.0,89564.0,0.41699295]
[1765768746345,0.00024161,89565.0,89564.0,0.41399295]
[1765768746480,0.00024161,89565.0,89564.0,0.30269295]
[1765768746828,0.00024161,89565.0,89564.0,0.27662163]
[1765768747328,0.00024161,89565.0,89564.0,0.28762163]
[1765768748133,0.00024161,89565.0,89564.0,0.28662163]
[1765768749019,0.00024161,89565.0,89564.0,0.29362163]
[1765768750031,0.00024161,89565.0,89564.0,0.28362163]
[1765768750460,0.00024161,89565.0,89564.0,0.29262163]
[1765768750583,0.00024161,89565.0,89564.0,0.28562163]
[1765768750996,0.00024161,89565.0,89564.0,0.29162163]
[1765768751191,0.00024161,89565.0,89564.0,0.28262163]
[1765768751423,0.00024161,89565.0,89564.0,0.28662163]
[1765768751825,0.00024161,89565.0,89564.0,0.29462163]
[1765768752740,0.00024161,89565.0,89564.0,0.31710604]
[1765768753189,0.00024161,89565.0,89564.0,0.27698163]
[1765768753397,0.11153064,89565.0,89564.0,0.20907163]
[1765768753624,0.11153064,89565.0,89564.0,0.21807163]
[1765768753851,0.11153064,89565.0,89564.0,0.21007163]
[1765768754096,0.11153064,89565.0,89564.0,0.015]
[1765768754097,0.14503064,89565.0,89564.0,0.015]
[1765768754861,0.11153064,89565.0,89564.0,0.009]
[1765768755268,0.11153064,89565.0,89564.0,0.014]
[1765768755477,0.17819064,89565.0,89564.0,0.014]
[1765768756072,0.17819064,89565.0,89564.0,0.005]
[1765768756530,0.17819064,89565.0,89564.0,0.012]
[1765768756744,0.11128903,89563.0,89562.0,0.01116544]
[1765768757078,0.14444903,89563.0,89562.0,0.01116544]
[1765768757943,0.14744903,89563.0,89562.0,0.01116544]
[1765768758302,0.11128903,89560.0,89559.0,0.01116582]
[1765768758501,0.003,89563.0,89560.0,0.23447966]
[1765768758722,0.003,89563.0,89562.0,0.26411899]
[1765768759087,0.003,89563.0,89562.0,0.32326702]
[1765768759884,0.00024161,89565.0,89562.0,0.33443246]
[1765768760092,0.00024161,89565.0,89564.0,0.04081]
[1765768760535,0.00024161,89565.0,89564.0,0.09872]
[1765768760738,0.00024161,89565.0,89564.0,0.09995803]
[1765768761459,0.00024161,89565.0,89564.0,0.10795803]
[1765768761878,0.00024161,89565.0,89564.0,0.11395803]
[1765768762085,0.00024161,89565.0,89564.0,0.26235803]
[1765768762226,0.00024161,89565.0,89564.0,0.37365803]
[1765768762479,0.00024161,89565.0,89564.0,0.41378244]
[1765768762936,0.00024161,89565.0,89564.0,0.45550794]
[1765768763095,0.00024161,89565.0,89564.0,0.41538353]
[1765768763823,0.00024161,89565.0,89564.0,0.30408353]
[1765768764765,0.00024161,89565.0,89564.0,0.26235803]
[1765768767541,0.00024161,89565.0,89564.0,0.30245675]
[1765768767716,0.00024161,89565.0,89564.0,0.26235803]
[1765768768128,0.00024161,89565.0,89564.0,0.30245675]
[1765768768334,0.00024161,89565.0,89564.0,0.32009675]
[1765768768732,0.00024161,89565.0,89564.0,0.27999803]
[1765768769142,0.00024161,89565.0,89564.0,0.32009605]
[1765768771051,0.00024161,89565.0,89564.0,0.26235803]
[1765768771535,0.03086161,89565.0,89564.0,0.1624]
[1765768771747,0.17314548,89565.0,89564.0,0.014]
[1765768771896,0.14252548,89565.0,89564.0,0.014]
[1765768772273,0.03123645,89565.0,89564.0,0.014]
[1765768772498,0.03123645,89565.0,89563.0,0.22330585]
[1765768772715,0.11128903,89564.0,89563.0,0.22330585]
[1765768774620,0.11128903,89554.0,89553.0,0.22332922]
[1765768775256,0.14124903,89554.0,89553.0,0.23449579]
[1765768775632,0.01302,89556.0,89553.0,0.24249579]
[1765768775897,0.01116544,89562.0,89558.0,0.01116594]
[1765768776106,0.22330649,89563.0,89559.0,0.01116582]
[1765768776107,0.01116532,89563.0,89559.0,0.01116582]
[1765768776314,1.11128903,89560.0,89559.0,0.01116582]
[1765768777342,1.11128903,89560.0,89559.0,0.01216582]
[1765768777343,0.86118903,89560.0,89559.0,0.01216582]
[1765768777547,0.62358903,89560.0,89559.0,0.01216582]
[1765768777742,0.59818903,89560.0,89559.0,0.01216582]
[1765768777897,0.62765903,89560.0,89559.0,0.01216582]
[1765768779101,0.62765903,89560.0,89559.0,0.01816582]
[1765768779484,0.62765903,89560.0,89559.0,0.02216582]
[1765768780090,0.42918903,89560.0,89559.0,0.02216582]
[1765768782482,0.40778903,89560.0,89559.0,0.02216582]
[1765768782687,0.4243,89563.0,89559.0,0.02216582]
[1765768782912,0.51938903,89560.0,89559.0,0.24547979]
[1765768783496,0.00037484,89564.0,89559.0,0.24547979]
[1765768783497,0.11128903,89564.0,89563.0,0.22330649]
[1765768784475,0.24318903,89564.0,89563.0,0.22330649]
[1765768785610,0.00024161,89565.0,89563.0,0.32285452]
[1765768785821,0.00024161,89565.0,89564.0,0.09831]
[1765768786424,0.00024161,89565.0,89564.0,0.24794803]
[1765768787182,0.00324161,89565.0,89564.0,0.24794803]
[1765768788529,0.00024161,89565.0,89564.0,0.25494803]
[1765768788765,0.00024161,89565.0,89564.0,0.24794803]
[1765768789001,0.00024161,89565.0,89564.0,0.36324803]
[1765768789210,0.00024161,89565.0,89564.0,0.37224803]
[1765768789350,0.00024161,89565.0,89564.0,0.36824803]
[1765768789559,0.00024161,89565.0,89564.0,0.37424803]
[1765768790014,0.00024161,89565.0,89564.0,0.41434605]
[1765768790183,0.00024161,89565.0,89564.0,0.37424803]
[1765768794021,0.00024161,89565.0,89564.0,0.41429515]
[1765768796273,0.00024161,89565.0,89564.0,0.31871796]
[1765768796873,0.00024161,89565.0,89564.0,0.26294803]
[1765768797052,0.00024161,89565.0,89564.0,0.37424803]
[1765768798698,0.00024161,89565.0,89564.0,0.26294803]
[1765768799482,0.00024161,89565.0,89564.0,0.41428301]
[1765768799603,0.00011514,89567.0,89564.0,0.30298301]
[1765768799810,0.01116233,89587.0,89583.0,0.01116283]
[1765768800031,0.11128903,89585.0,89584.0,0.14804325]
[1765768800245,0.11166387,89585.0,89584.0,0.14804325]
[1765768800452,0.05229484,89585.0,89584.0,0.14804325]
[1765768800690,0.16358387,89585.0,89584.0,0.14804325]
[1765768801097,0.45883056,89585.0,89584.0,0.14804325]
[1765768801299,1.45428387,89585.0,89584.0,0.14804325]
[1765768801522,1.45428387,89585.0,89570.0,0.01116445]
[1765768801523,0.11128903,89571.0,89570.0,0.01116445]
[1765768801909,0.11128903,89571.0,89568.0,0.23445873]
[1765768801910,0.02566,89571.0,89568.0,0.0111647]
[1765768802115,1.11128903,89565.0,89564.0,0.0111652]
[1765768802330,1.13694903,89565.0,89564.0,0.0111652]
[1765768804091,0.11128903,89565.0,89564.0,0.0111652]
[1765768804287,0.0136,89572.0,89569.0,0.23445366]
[1765768804495,0.11128903,89570.0,89569.0,0.23445366]
[1765768804839,0.13663903,89570.0,89569.0,0.23445366]
[1765768805283,0.24853903,89570.0,89569.0,0.23445366]
[1765768805488,0.24563903,89570.0,89569.0,0.23445366]
[1765768805666,0.24963903,89570.0,89569.0,0.23445366]
[1765768806275,0.26063903,89570.0,89569.0,0.23445366]
[1765768806578,0.25003903,89570.0,89569.0,0.23445366]
[1765768807081,0.24933903,89570.0,89569.0,0.23445366]
[1765768807377,0.14063903,89570.0,89569.0,0.23445366]
[1765768807946,0.004,89570.0,89569.0,0.23445366]
[1765768808153,0.004,89570.0,89569.0,0.35706169]
[1765768808357,0.004,89570.0,89569.0,0.23569169]
[1765768808607,0.11528903,89570.0,89569.0,0.23569169]
[1765768808804,0.004,89570.0,89569.0,0.23569169]
[1765768808984,0.11128903,89575.0,89574.0,0.22327907]
[1765768809185,0.01252,89578.0,89576.0,0.22327409]
[1765768809417,0.01252,89578.0,89575.0,0.01116382]
[1765768809418,0.11128903,89576.0,89575.0,0.01116382]
[1765768810980,0.11128903,89577.0,89576.0,0.22327409]
[1765768811408,0.11165138,89577.0,89576.0,0.22327409]
[1765768812170,0.00036235,89577.0,89576.0,0.26183409]
[1765768812341,0.00036235,89577.0,89576.0,0.31611409]
[1765768812680,0.00336235,89577.0,89576.0,0.31611409]
[1765768813727,0.00036235,89577.0,89576.0,0.26183409]
[1765768813959,0.00036235,89577.0,89576.0,0.31611409]
[1765768815014,0.00036235,89577.0,89576.0,0.31911409]
[1765768815264,0.00036235,89577.0,89576.0,0.32011409]
[1765768815645,0.00036235,89577.0,89576.0,0.32135212]
[1765768817540,0.00036235,89577.0,89576.0,0.46939537]
[1765768819151,0.00036235,89577.0,89576.0,0.15204325]
[1765768819152,0.15779138,89577.0,89576.0,0.15204325]
[1765768820155,0.15779138,89577.0,89576.0,0.15104325]
[1765768820365,0.16079138,89577.0,89576.0,0.15104325]
[1765768821248,1.16079138,89577.0,89576.0,0.14804325]
[1765768821415,1.15779138,89577.0,89576.0,0.14804325]
[1765768821890,1.16179138,89577.0,89576.0,0.14804325]
[1765768823078,0.72429138,89577.0,89576.0,0.14804325]
[1765768823279,0.72469138,89577.0,89576.0,0.14804325]
[1765768823442,0.11128903,89575.0,89574.0,0.01116395]
[1765768823643,0.62946903,89575.0,89574.0,0.01116395]
[1765768823840,0.60638903,89574.0,89573.0,0.01116407]
[1765768824203,0.11128903,89572.0,89571.0,0.15920757]
[1765768824339,0.15125903,89572.0,89571.0,0.15920757]
[1765768824950,0.15125903,89572.0,89571.0,0.14804325]
[1765768825153,0.17343903,89572.0,89571.0,0.14804325]
[1765768825353,1.17343903,89572.0,89571.0,0.14804325]
[1765768825791,1.17343903,89572.0,89552.0,0.09431498]
[1765768825792,1.17343903,89572.0,89557.0,0.01116607]
[1765768825793,0.7209,89563.0,89557.0,0.01116607]
[1765768825945,0.0111652,89564.0,89560.0,0.01116569]
[1765768826143,0.11128903,89561.0,89560.0,0.01116569]
[1765768826364,0.13331903,89561.0,89560.0,0.01116569]
[1765768827650,0.02203,89561.0,89560.0,0.01116569]
[1765768827864,0.13331903,89561.0,89560.0,0.01916569]
[1765768828290,0.13331903,89561.0,89560.0,0.01116569]
[1765768828981,0.13331903,89561.0,89554.0,0.23449538]
[1765768828982,0.11128903,89558.0,89554.0,0.01116644]
[1765768829184,0.11128903,89553.0,89552.0,0.23450061]
[1765768829343,0.03275594,89558.0,89554.0,0.22332894]
[1765768829684,0.01116594,89558.0,89555.0,0.01116632]
[1765768829804,0.02159,89559.0,89555.0,0.01116632]
[1765768829805,0.11128903,89556.0,89555.0,0.01116632]
[1765768830007,0.13273903,89556.0,89555.0,0.01116632]
[1765768830253,0.11128903,89559.0,89558.0,0.01116594]
[1765768830454,0.40198903,89559.0,89558.0,0.01116594]
[1765768830662,0.42343903,89559.0,89558.0,0.01116594]
[1765768831417,0.42343903,89559.0,89558.0,0.01816594]
[1765768832056,0.42343903,89559.0,89558.0,0.02316594]
[1765768832261,0.44107903,89559.0,89558.0,0.02316594]
[1765768832458,0.01764,89559.0,89558.0,0.02316594]
[1765768832929,0.14993903,89559.0,89558.0,0.02316594]
[1765768833452,0.14993903,89559.0,89558.0,0.012]
[1765768833665,0.17094903,89559.0,89558.0,0.012]
[1765768834127,0.15330903,89559.0,89558.0,0.012]
[1765768834276,0.17094903,89559.0,89558.0,0.012]
[1765768836894,0.17094903,89559.0,89558.0,0.23531896]
[1765768837861,0.14993903,89559.0,89558.0,0.23531896]
[1765768838265,0.14993903,89559.0,89558.0,0.012]
[1765768838878,0.14993903,89559.0,89558.0,0.23531896]
[1765768839164,0.12892903,89559.0,89558.0,0.23531896]
[1765768840957,0.01116495,89566.0,89558.0,0.23531896]
[1765768840958,0.11128903,89564.0,89563.0,0.23447178]
[1765768841087,0.45402903,89564.0,89563.0,0.23447178]
[1765768841886,0.70392903,89564.0,89563.0,0.23447178]
[1765768842107,0.47622903,89564.0,89563.0,0.23447178]
[1765768842512,0.44632903,89564.0,89563.0,0.23447178]
[1765768842714,0.46604903,89564.0,89563.0,0.23447178]
[1765768843047,0.48644903,89564.0,89563.0,0.01116532]
[1765768843758,0.8034,89563.0,89561.0,0.01116557]
[1765768843877,0.88328903,89562.0,89561.0,0.01116557]
[1765768844081,1.11128903,89561.0,89560.0,0.01116569]
[1765768844293,0.11128903,89559.0,89558.0,0.01240397]
[1765768844537,0.13072903,89559.0,89558.0,0.01240397]
[1765768845721,0.13072903,89559.0,89558.0,0.01940397]
[1765768845918,0.13072903,89559.0,89558.0,0.02440397]
[1765768846126,0.11128903,89559.0,89558.0,0.02440397]
[1765768848228,0.12892903,89564.0,89563.0,0.22330649]
[1765768848479,0.43642903,89564.0,89563.0,0.22330649]
[1765768848850,0.43642903,89564.0,89558.0,0.01323803]
[1765768848851,0.11128903,89559.0,89558.0,0.01323803]
[1765768849051,0.13001903,89559.0,89558.0,0.01323803]
[1765768849249,0.14874903,89559.0,89558.0,0.01323803]
[1765768849656,0.11128903,89558.0,89557.0,0.01116607]
[1765768849856,0.15315572,89558.0,89557.0,0.01116607]
[1765768850304,0.13456572,89558.0,89557.0,0.01116607]
[1765768850556,0.13001903,89558.0,89557.0,0.01116607]
[1765768850728,0.11128903,89558.0,89557.0,0.01116607]
[1765768851534,0.11128903,89558.0,89557.0,0.01816607]
[1765768851962,0.11128903,89558.0,89557.0,0.02316607]
[1765768852615,0.12959903,89558.0,89557.0,0.02316607]
[1765768857440,0.03595,89558.0,89557.0,0.012]
[1765768857584,0.16940572,89558.0,89557.0,0.012]
[1765768858684,0.39272468,89558.0,89557.0,0.012]
[1765768858875,0.38817799,89558.0,89557.0,0.012]
[1765768859704,0.38817799,89558.0,89556.0,0.14804325]
[1765768859706,0.40198903,89557.0,89556.0,0.14804325]
[1765768859907,1.43640903,89557.0,89556.0,0.14804325]
[1765768860376,1.37513839,89557.0,89556.0,0.14804325]
[1765768860589,1.11128903,89541.0,89540.0,0.14804325]
[1765768860757,1.11128903,89541.0,89539.0,0.14804325]
[1765768860758,0.11128903,89540.0,89539.0,0.14804325]
[1765768860935,0.12863903,89540.0,89539.0,0.14804325]
[1765768861142,0.14598903,89540.0,89539.0,0.14804325]
[1765768861545,0.14598903,89540.0,89534.0,0.01116894]
[1765768861546,0.01116869,89536.0,89533.0,0.01116906]
[1765768861725,0.11128903,89532.0,89528.0,0.01116968]
[1765768862124,0.01116894,89534.0,89528.0,0.01116968]
[1765768862347,0.01726276,89536.0,89532.0,0.23455116]
[1765768862580,4.276e-05,89536.0,89532.0,0.23455116]
[1765768862927,4.276e-05,89536.0,89534.0,0.22337869]
[1765768863359,4.276e-05,89536.0,89534.0,0.27609869]
[1765768863574,4.276e-05,89536.0,89534.0,0.22337869]
[1765768864729,4.276e-05,89536.0,89532.0,0.24355116]
[1765768864730,0.02810881,89535.0,89532.0,0.24355116]
[1765768864930,0.02810881,89535.0,89532.0,0.23455116]
[1765768865155,0.01694,89535.0,89534.0,0.005]
[1765768865355,0.01694,89535.0,89534.0,0.009]
[1765768865777,0.14503903,89535.0,89534.0,0.005]
[1765768865973,0.12822903,89535.0,89534.0,0.22337882]
[1765768866423,0.12822903,89535.0,89534.0,0.22837882]
[1765768866631,0.11128903,89535.0,89534.0,0.22837882]
[1765768866836,0.11128903,89535.0,89534.0,0.22961685]
[1765768867994,0.11128903,89535.0,89534.0,0.3776601]
[1765768868207,0.11128903,89535.0,89534.0,0.3816601]
[1765768871746,0.12727903,89535.0,89534.0,0.15828128]
[1765768872557,0.12727903,89535.0,89534.0,0.15704325]
[1765768872558,0.03185,89535.0,89534.0,0.15704325]
[1765768872761,0.14313903,89535.0,89534.0,0.15704325]
[1765768873340,0.12727903,89535.0,89534.0,0.15704325]
[1765768873542,0.11128903,89535.0,89534.0,0.15704325]
[1765768874578,0.11133179,89536.0,89535.0,0.22337633]
[1765768875958,0.11133179,89536.0,89535.0,0.22737633]
[1765768876357,0.11133179,89536.0,89535.0,0.31373436]
[1765768876358,4.276e-05,89536.0,89535.0,0.31373436]
[1765768876797,4.276e-05,89536.0,89535.0,0.35845986]
[1765768877110,4.276e-05,89536.0,89535.0,0.31673436]
[1765768883059,4.276e-05,89536.0,89535.0,0.35676934]
[1765768885783,4.276e-05,89536.0,89535.0,0.50481259]